lending/lending_fUSD_20250508
["ID","MTS","AMOUNT","RATE_DAILY","PERIOD"]
[360307240,1746737443165,-311.50795801,0.00027119,4]
[360307242,1746737443177,-178.19879808,0.00027124,2]
[360307243,1746737443190,-150.0,0.00027134,4]
[360307245,1746737443201,-150.0,0.0002714,4]
[360307247,1746737443212,-200.0,0.0002714,2]
[360307249,1746737443223,-311.50795801,0.00027149,4]
[360307251,1746737443234,-150.0,0.00027178,4]
[360307254,1746737443245,-311.50795801,0.00027179,4]
[360307256,1746737443255,-150.0,0.00027186,4]
[360307259,1746737443265,-274.15053198,0.00027197,2]
[360307261,1746737443275,-150.0,0.00027201,4]
[360307263,1746737443286,-311.50795801,0.00027209,4]
[360307264,1746737443296,-150.0,0.00027212,4]
[360307265,1746737443306,-150.0,0.00027231,4]
[360307266,1746737443316,-311.50795801,0.00027239,4]
[360307268,1746737443325,-150.0,0.00027253,4]
[360307270,1746737443335,-311.50795801,0.00027269,4]
[360307272,1746737443345,-150.0,0.00027269,4]
[360307274,1746737443355,-150.0,0.00027269,4]
[360307276,1746737443366,-150.0,0.00027269,4]
[360307278,1746737443376,-150.0,0.00027277,4]
[360307281,1746737443386,-150.0,0.00027281,4]
[360307282,1746737443400,-311.50795801,0.00027299,4]
[360307285,1746737443411,-150.0,0.00027316,4]
[360307286,1746737443422,-150.0,0.00027323,4]
[360307289,1746737443432,-150.0,0.00027323,4]
[360307291,1746737443443,-311.50795801,0.00027329,4]
[360307293,1746737443454,-150.0,0.00027336,4]
[360307295,1746737443464,-311.50795801,0.00027359,4]
[360307297,1746737443474,-150.0,0.00027368,4]
[360307299,1746737443484,-311.50795801,0.00027389,4]
[360307301,1746737443496,-7767.56,0.00027397,2]
[360307303,1746737443506,-1000.0,0.00027397,2]
[360307305,1746737443516,-300.0,0.00027397,2]
[360307307,1746737443526,-1010.0,0.000274,2]
[360307309,1746737443536,-150.0,0.00027404,7]
[360307311,1746737443546,-150.0,0.00027414,7]
[360307313,1746737443556,-158.98,0.00027415,2]
[360307315,1746737443566,-311.50795801,0.00027419,7]
[360307317,1746737443576,-150.0,0.00027428,7]
[360307319,1746737443586,-311.50795801,0.00027449,7]
[360307321,1746737443596,-150.0,0.0002746,7]
[360307323,1746737443607,-150.0,0.00027471,7]
[360307325,1746737443617,-311.50795801,0.00027479,7]
[360307328,1746737443627,-150.0,0.00027488,7]
[360307329,1746737443636,-150.0,0.00027506,7]
[360307332,1746737443648,-311.50795801,0.00027509,7]
[360307333,1746737443658,-150.0,0.00027523,7]
[360307335,1746737443668,-311.50795801,0.00027539,7]
[360307336,1746737443678,-150.0,0.00027539,7]
[360307337,1746737443687,-150.0,0.00027539,7]
[360307338,1746737443698,-150.0,0.00027539,7]
[360307339,1746737443708,-150.0,0.00027551,7]
[360307340,1746737443717,-150.0,0.00027558,7]
[360307341,1746737443727,-311.50795801,0.00027569,7]
[360307342,1746737443736,-150.0,0.00027592,7]
[360307343,1746737443746,-150.0,0.00027597,7]
[360307344,1746737443756,-311.50795801,0.00027599,7]
[360307345,1746737443765,-150.0,0.00027602,7]
[360307346,1746737443775,-150.0,0.00027606,7]
[360307347,1746737443784,-150.0,0.00027627,7]
[360307348,1746737443794,-311.50795801,0.00027629,7]
[360307349,1746737443803,-150.0,0.00027643,7]
[360307350,1746737443814,-311.50795801,0.00027659,7]
[360307351,1746737443823,-150.0,0.00027661,7]
[360307352,1746737443837,-150.0,0.00027674,7]
[360307353,1746737443847,-150.0,0.00027688,7]
[360307355,1746737443857,-311.50795801,0.00027689,7]
[360307357,1746737443867,-150.0,0.00027696,7]
[360307359,1746737443880,-311.50795801,0.00027719,7]
[360307361,1746737443890,-150.0,0.00027719,7]
[360307363,1746737443901,-150.0,0.0002773,7]
[360307364,1746737443911,-9409.22694336,0.00027734,2]
[360307366,1746737443921,-150.0,0.00027734,7]
[360307368,1746737443931,-150.0,0.00027741,7]
[360307370,1746737443941,-311.50795801,0.00027749,7]
[360307373,1746737443951,-29384.9406623,0.00027754,3]
[360307375,1746737443961,-1302.0,0.00027764,2]
[360307376,1746737443971,-798.0,0.00027764,2]
[360307378,1746737443981,-625.0,0.00027764,2]
[360307380,1746737443990,-1053.355,0.00027764,2]
[360307383,1746737444001,-1245.0,0.00027764,2]
[360307385,1746737444011,-1454.0,0.00027764,2]
[360307387,1746737444022,-551.0,0.00027764,2]
[360307388,1746737444033,-663.05,0.00027764,2]
[360307391,1746737444043,-6790.0,0.00027764,2]
[360307392,1746737444054,-150.0,0.00027764,2]
[360307394,1746737444064,-4020.0,0.00027764,2]
[360307396,1746737444075,-153.0,0.00027764,2]
[360307398,1746737444086,-894.762,0.00027764,2]
[360307400,1746737444096,-167.0,0.00027764,2]
[360307402,1746737444106,-307.2,0.00027764,2]
[360307404,1746737444116,-150.0,0.00027765,7]
[360307406,1746737444127,-150.0,0.00027777,7]
[360307408,1746737444138,-311.50795801,0.00027779,7]
[360307410,1746737444153,-207.4,0.00027779,2]
[360307412,1746737444163,-151.0,0.00027779,2]
[360307414,1746737444174,-150.0,0.0002778,7]
[360307416,1746737444184,-150.0,0.00027799,7]
[360307419,1746737444195,-311.50795801,0.00027809,7]
[360307422,1746737444209,-150.0,0.00027809,7]
[360307425,1746737444220,-150.0,0.00027809,7]
[360307428,1746737444233,-150.0,0.00027809,7]
[360307430,1746737444243,-150.0,0.00027825,7]
[360307432,1746737444254,-150.0,0.00027834,7]
[360307434,1746737444265,-311.50795801,0.00027839,7]
[360307436,1746737444276,-150.0,0.00027868,7]
[360307438,1746737444287,-311.50795801,0.00027869,7]
[360307439,1746737444298,-150.0,0.00027871,7]
[360307441,1746737444308,-150.0,0.00027876,7]
[360307443,1746737444320,-227.01912579,0.00027889,2]
[360307445,1746737444332,-311.50795801,0.00027899,7]
[360307447,1746737444344,-1100.0,0.000279,10]
[360307449,1746737444354,-150.0,0.00027903,7]
[360307451,1746737444365,-150.0,0.00027917,7]
[360307453,1746737444376,-150.0,0.00027917,7]
[360307455,1746737444387,-311.50795801,0.00027929,7]
[360307457,1746737444401,-150.0,0.00027937,7]
[360307459,1746737444412,-150.0,0.00027944,7]
[360307461,1746737444422,-150.0,0.00027952,7]
[360307463,1746737444430,-311.50795801,0.00027959,7]
[360307465,1746737444441,-150.0,0.00027962,7]
[360307467,1746737444450,-29384.9406623,0.0002797,3]
[360307469,1746737444459,-150.0,0.00027972,7]
[360307471,1746737444469,-500.0,0.00027973,5]
[360307473,1746737444479,-500.0,0.00027973,5]
[360307475,1746737444489,-500.0,0.00027973,5]
[360307477,1746737444499,-500.0,0.00027973,5]
[360307479,1746737444509,-503.85916262,0.00027973,5]
[360307481,1746737444520,-500.0,0.00027973,5]
[360307483,1746737444529,-500.0,0.00027973,5]
[360307485,1746737444539,-500.0,0.00027973,5]
[360307487,1746737444550,-311.50795801,0.00027989,7]
[360307507,1746737444905,-58769.8813245,0.0002799,3]
[360307508,1746737444919,-172.74,0.0002799,2]
[360307509,1746737444930,-172.74,0.0002799,2]
[360307510,1746737444941,-1035.50121157,0.00027999,15]
[360307511,1746737444952,-100992.21931498,0.00028,2]
[360307512,1746737444963,-9548.82668057,0.00028,2]
[360307513,1746737444974,-500.0,0.00028,2]
[360307514,1746737444985,-150.0,0.00028006,7]
[360307515,1746737444997,-150.0,0.00028008,7]
[360307516,1746737445008,-150.0,0.00028011,7]
[360307517,1746737445019,-311.50795801,0.00028019,7]
[360307518,1746737445029,-626.4523382,0.00028027,2]
[360307519,1746737445039,-150.0,0.00028041,7]
[360307520,1746737445050,-311.50795801,0.00028049,7]
[360307521,1746737445060,-172.74,0.00028052,2]
[360307522,1746737445071,-150.0,0.00028054,7]
[360307523,1746737445082,-21546.0636176,0.00028063,3]
[360307524,1746737445092,-150.0,0.00028076,7]
[360307525,1746737445103,-311.50795801,0.00028079,7]
[360307526,1746737445114,-150.0,0.00028079,7]
[360307527,1746737445126,-150.0,0.00028079,7]
[360307528,1746737445138,-150.0,0.00028079,7]
[360307529,1746737445154,-29384.9406623,0.00028083,3]
[360307530,1746737445166,-1152.0,0.00028093,2]
[360307531,1746737445177,-150.0,0.00028099,7]
[360307532,1746737445188,-500.0,0.000281,2]
[360307533,1746737445198,-311.50795801,0.00028109,7]
[360307534,1746737445209,-150.0,0.0002811,7]
[360307535,1746737445219,-150.0,0.00028126,7]
[360307536,1746737445229,-311.50795801,0.00028139,7]
[360307537,1746737445239,-150.0,0.00028145,7]
[360307538,1746737445250,-150.0,0.00028145,7]
[360307539,1746737445260,-150.0,0.00028146,7]
[360307540,1746737445270,-198.92,0.0002816,2]
[360307541,1746737445280,-311.50795801,0.00028169,7]
[360307542,1746737445290,-150.0,0.00028179,7]
[360307543,1746737445301,-150.0,0.00028191,7]
[360307544,1746737445310,-311.50795801,0.00028199,7]
[360307545,1746737445320,-150.0,0.00028214,7]
[360307546,1746737445330,-150.0,0.00028214,7]
[360307547,1746737445340,-150.0,0.00028214,7]
[360307548,1746737445350,-311.50795801,0.00028229,7]
[360307549,1746737445361,-1000.0,0.00028232,2]
[360307550,1746737445372,-150.0,0.00028237,7]
[360307551,1746737445382,-150.0,0.00028248,7]
[360307552,1746737445400,-311.50795801,0.00028259,7]
[360307553,1746737445411,-150.0,0.00028281,7]
[360307554,1746737445423,-150.0,0.00028282,7]
[360307555,1746737445435,-150.0,0.00028283,7]
[360307556,1746737445446,-311.50795801,0.00028289,7]
[360307557,1746737445456,-150.0,0.00028301,7]
[360307558,1746737445466,-150.0,0.00028317,7]
[360307559,1746737445476,-311.50795801,0.00028319,7]
[360307560,1746737445486,-150.0,0.00028328,7]
[360307561,1746737445496,-311.50795801,0.00028349,7]
[360307562,1746737445506,-150.0,0.00028349,7]
[360307563,1746737445516,-150.0,0.00028349,7]
[360307564,1746737445526,-150.0,0.00028349,7]
[360307565,1746737445536,-150.0,0.00028352,7]
[360307566,1746737445546,-150.0,0.00028374,7]
[360307567,1746737445556,-311.50795801,0.00028379,7]
[360307568,1746737445566,-172.74,0.00028382,2]
[360307569,1746737445575,-3935.3145,0.00028384,10]
[360307570,1746737445586,-150.0,0.00028386,7]
[360307571,1746737445595,-626.4523383,0.00028392,2]
[360307572,1746737445605,-311.50795801,0.00028409,7]
[360307573,1746737445615,-150.0,0.00028416,7]
[360307574,1746737445625,-150.0,0.00028419,7]
[360307575,1746737445635,-150.0,0.00028421,7]
[360307576,1746737445647,-311.50795801,0.00028439,7]
[360307577,1746737445657,-150.0,0.00028455,7]
[360307578,1746737445668,-150.0,0.00028465,7]
[360307579,1746737445678,-311.50795801,0.00028469,7]
[360307580,1746737445688,-21546.0636176,0.0002847,3]
[360307581,1746737445698,-172.74,0.0002847,2]
[360307582,1746737445708,-172.74,0.0002847,2]
[360307583,1746737445718,-172.74,0.0002847,2]
[360307584,1746737445728,-500.0,0.00028473,5]
[360307585,1746737445739,-500.89911374,0.00028473,5]
[360307586,1746737445749,-500.0,0.00028473,5]
[360307587,1746737445758,-500.0,0.00028473,5]
[360307588,1746737445768,-500.0,0.00028473,5]
[360307589,1746737445779,-150.0,0.00028476,7]
[360307590,1746737445789,-88154.8219868,0.0002848,3]
[360307591,1746737445799,-64638.1908528,0.0002848,3]
[360307592,1746737445809,-172.74,0.0002848,2]
[360307593,1746737445818,-172.74,0.0002848,2]
[360307594,1746737445829,-150.0,0.00028484,7]
[360307595,1746737445842,-150.0,0.0002849,7]
[360307596,1746737445852,-3759.57913048,0.0002849,3]
[360307598,1746737446898,-1526.93992663,0.0002849,3]
[360307599,1746737446912,-53483.36226739,0.0002849,3]
[360307600,1746737446922,-48582.78841861,0.0002849,3]
[360307601,1746737446934,-16055.40243419,0.0002849,3]
[360307602,1746737446944,-172.74,0.0002849,2]
[360307603,1746737446956,-172.74,0.0002849,2]
[360307604,1746737446967,-172.74,0.0002849,2]
[360307605,1746737446977,-172.40848293,0.0002849,2]
[360307606,1746737446987,-311.50795801,0.00028499,7]
[360307607,1746737446998,-34022.02198166,0.000285,5]
[360307608,1746737447014,-379.13887211,0.000285,5]
[360307609,1746737447027,-2137.37415359,0.000285,5]
[360307610,1746737447390,-1206.17880466,0.000285,5]
[360307611,1746737447404,-776.78978475,0.000285,5]
[360307612,1746737447416,-19816.92653172,0.000285,5]
[360307613,1746737447427,-5114.43799839,0.000285,5]
[360307614,1746737447467,-2819.4294546,0.000285,5]
[360307615,1746737447483,-21262.23233497,0.000285,5]
[360307616,1746737447516,-18423.47796438,0.000285,5]
[360307617,1746737448342,-29205.86306884,0.000285,5]
[360307618,1746737448353,-17844.23,0.000285,2]
[360307619,1746737448365,-150.0,0.00028511,7]
[360307620,1746737448377,-150.0,0.00028511,7]
[360307621,1746737448389,-150.0,0.00028524,7]
[360307622,1746737448402,-311.50795801,0.00028529,7]
[360307623,1746737448413,-150.0,0.00028551,7]
[360307624,1746737448426,-150.0,0.00028556,7]
[360307625,1746737448437,-311.50795801,0.00028559,7]
[360307626,1746737448448,-150.0,0.00028559,7]
[360307627,1746737448459,-311.50795801,0.00028589,7]
[360307628,1746737448471,-172.74,0.0002859,2]
[360307629,1746737448482,-150.0,0.00028594,7]
[360307630,1746737448495,-20897.59858522,0.000286,2]
[360307631,1746737448510,-1237.71526594,0.000286,2]
[360307632,1746737459459,-16301.7033767,0.000286,2]
[360307633,1746737459472,-12795.46002071,0.000286,2]
[360307634,1746737459486,-4803.94624046,0.000286,2]
[360307635,1746737459498,-8398.02158214,0.000286,2]
[360307636,1746737459536,-9034.0152729,0.000286,2]
[360307637,1746737459548,-433.89519052,0.000286,2]
[360307638,1746737459561,-340.85218645,0.000286,2]
[360307639,1746737459574,-14977.84227896,0.000286,2]
[360307640,1746737459586,-150.0,0.00028602,7]
[360307641,1746737459596,-1410.41,0.00028615,2]
[360307642,1746737459607,-311.50795801,0.00028619,7]
[360307643,1746737459618,-150.0,0.00028619,7]
[360307644,1746737459629,-150.0,0.00028619,7]
[360307645,1746737459640,-150.0,0.00028619,7]
[360307646,1746737459651,-172.74,0.00028626,2]
[360307647,1746737459663,-150.0,0.00028628,7]
[360307648,1746737459674,-3739.0,0.00028636,2]
[360307649,1746737459686,-150.0,0.00028648,7]
[360307650,1746737459697,-311.50795801,0.00028649,7]
[360307651,1746737459709,-150.0,0.0002865,7]
[360307652,1746737459720,-150.0,0.00028663,7]
[360307653,1746737459731,-311.50795801,0.00028679,7]
[360307654,1746737459743,-150.0,0.00028686,7]
[360307655,1746737459755,-150.0,0.00028693,7]
[360307656,1746737459765,-150.0,0.00028697,7]
[360307657,1746737459776,-311.50795801,0.00028709,7]
[360307658,1746737459788,-150.0,0.00028709,7]
[360307659,1746737459799,-150.0,0.00028732,7]
[360307660,1746737459810,-311.50795801,0.00028739,7]
[360307661,1746737459822,-150.0,0.00028739,7]
[360307662,1746737459833,-1000.0,0.0002874,7]
[360307663,1746737459848,-1000.0,0.0002874,7]
[360307664,1746737459859,-167.38850894,0.00028747,2]
[360307665,1746737459870,-150.0,0.00028754,7]
[360307666,1746737459882,-13714.63371742,0.00028757,3]
[360307667,1746737459895,-7831.42990018,0.00028757,3]
[360307668,1746737459906,-9409.22694336,0.00028757,2]
[360307669,1746737459920,-172.74,0.00028766,2]
[360307670,1746737459931,-150.0,0.00028766,7]
[360307671,1746737459943,-7767.56,0.00028767,2]
[360307672,1746737459955,-311.50795801,0.00028769,7]
[360307673,1746737459965,-34555.67385162,0.00028775,2]
[360307674,1746737459978,-5848.1442474,0.00028775,2]
[360307675,1746737460017,-66017.2969017,0.00028775,2]
[360307676,1746737489091,1119.37,0.00027831,120]
[360307678,1746737529356,651.05329114,0.0003,120]
[360307679,1746737570855,181.0,0.0003013,120]
[360307680,1746737579998,1035.50121157,0.00019824,5]
[360307681,1746737599240,500.0,0.00030135,120]
[360307682,1746737642614,200.0,0.0003,120]
[360307683,1746737704601,261.47,0.000291,120]
[360307684,1746737720917,500.0,0.00029589,30]
[360307685,1746737741762,521.33859338,0.00029999,30]
[360307687,1746737871727,740.212485,0.00030136,120]
[360307689,1746737903367,1011.0,0.00030137,120]
[360307690,1746737933352,250.0,0.00017,2]
[360307691,1746737934435,300.0,0.00019,2]
[360307693,1746737965328,260.429,0.0003,30]
[360307694,1746737986476,585.77,0.00029589,30]
[360307695,1746738123093,286.71,0.00030137,120]
[360307697,1746738160891,150.0,0.0002,5]
[360307699,1746738202099,500.0,0.00030136,120]
[360307700,1746738234983,500.0,0.0003,30]
[360307702,1746738424630,1317.26,0.00018724,2]
[360307722,1746738557150,-575.6157526,0.000196,2]
[360307723,1746738557175,-151.0,0.00019687,2]
[360307724,1746738557198,-3905.2491914,0.00019687,2]
[360307732,1746738626431,158.98,0.00019374,2]
[360307750,1746738631390,-484.9460096,0.00019687,2]
[360307751,1746738631403,-226.25255764,0.00019687,2]
[360307752,1746738631413,-110.58663089,0.0001969,2]
[360307753,1746738631427,-67.61216719,0.0001969,2]
[360307754,1746738631437,-691.87983761,0.00019771,2]
[360307755,1746738631504,-508.12016239,0.00019771,2]
[360307756,1746738631514,-300.0,0.00019771,2]
[360307757,1746738631523,-8641.05689161,0.00019772,2]
[360307758,1746738631535,-886.49593624,0.00019772,2]
[360307759,1746738631544,-227.01912579,0.00019772,2]
[360307760,1746738631553,-176.8541837,0.00019775,2]
[360307761,1746738631563,-2222.11903257,0.00019787,2]
[360307762,1746738631576,-1929.20080721,0.00019787,2]
[360307768,1746738636307,-4137.37670718,0.00019787,2]
[360307769,1746738636327,-215308.89910997,0.00019787,2]
[360307770,1746738636342,-30903.17719453,0.00019787,2]
[360307771,1746738636364,-415.0,0.00019787,2]
[360307772,1746738636383,-697.0,0.00019787,2]
[360307773,1746738636402,-5247.763578,0.00019787,2]
[360307774,1746738636431,-456.40958204,0.00019787,2]
[360307928,1746738637580,-31510.6844,0.00019787,2]
[360307941,1746738637637,-2195.10000002,0.00019787,2]
[360307951,1746738637696,-4624.32494,0.00019787,2]
[360307965,1746738637755,-36961.29213292,0.00019787,2]
[360307969,1746738637771,-10274.97617836,0.0001979,2]
[360307971,1746738637788,-200.0,0.00019795,2]
[360307974,1746738637803,-119075.94822231,0.00019825,2]
[360307977,1746738637822,-2522.8486194,0.00019825,2]
[360307980,1746738637841,-2918.33725075,0.00019825,2]
[360307982,1746738637859,-910.114,0.00019825,2]
[360307987,1746738637878,-4634.74114788,0.00019825,2]
[360308150,1746738639491,-361.78210321,0.00019825,2]
[360308169,1746738639606,-1135.96567531,0.00019825,2]
[360308202,1746738639909,-3172.12756467,0.00019825,2]
[360308205,1746738639928,-88865.7310734,0.00019825,2]
[360308208,1746738639944,-10274.97617836,0.00019871,2]
[360308210,1746738639959,-500.0,0.00019873,2]
[360308213,1746738639974,-500.0,0.00019873,2]
[360308216,1746738639989,-223.81897589,0.00019873,2]
[360308218,1746738640003,-500.0,0.00019873,2]
[360308221,1746738640018,-500.0,0.00019873,2]
[360308223,1746738640034,-500.0,0.00019873,2]
[360308226,1746738640049,-500.0,0.00019981,2]
[360308229,1746738640064,-55.47377233,0.00019981,2]
[360308574,1746738643134,-444.52622767,0.00019981,2]
[360308576,1746738643144,-500.0,0.00019981,2]
[360308578,1746738643154,-500.0,0.00019981,2]
[360308580,1746738643165,-578.4143769,0.00019981,2]
[360308582,1746738643175,-500.0,0.00019981,2]
[360308584,1746738643187,-500.0,0.00019981,2]
[360308586,1746738643197,-500.0,0.00019981,2]
[360308588,1746738643208,-636.57986356,0.00019981,2]
[360308590,1746738643219,-500.0,0.00019981,2]
[360308592,1746738643229,-902.39189225,0.00019982,2]
[360308594,1746738643241,-2177.6,0.00019982,2]
[360308598,1746738643255,-9420.00810775,0.00019982,2]
[360308600,1746738643265,-500.0,0.00019987,2]
[360308601,1746738643275,-250.0,0.00019991,2]
[360308603,1746738643284,-200.0,0.00019991,2]
[360308605,1746738643295,-12500.0,0.00019991,2]
[360308607,1746738643305,-1000.0,0.00020023,2]
[360308609,1746738643315,-12500.0,0.00020027,2]
[360308611,1746738643324,-12500.0,0.00020036,2]
[360308613,1746738643334,-167.35,0.00020126,2]
[360308615,1746738643343,-150.0,0.00020153,7]
[360308617,1746738643354,-353.73,0.00020215,2]
[360308619,1746738643364,-2693.16,0.00020248,2]
[360308621,1746738643374,-12078.39502344,0.000209,4]
[360308624,1746738643384,-1317.26,0.00020988,2]
[360308626,1746738643394,-350.0,0.00021,2]
[360308628,1746738643403,-4616.44775859,0.00021144,2]
[360308630,1746738643415,-1243.9,0.0002137,2]
[360308632,1746738643425,-9527.55282782,0.00021431,2]
[360308634,1746738643436,-35177.02728415,0.00021461,2]
[360308636,1746738643446,-500.0,0.000215,2]
[360308638,1746738643456,-500.0,0.000215,2]
[360308640,1746738643466,-500.0,0.000215,2]
[360308642,1746738643476,-501.93748199,0.000215,2]
[360308644,1746738643486,-20723.41,0.00021506,2]
[360308646,1746738643498,-500.0,0.0002155,2]
[360308648,1746738643507,-1680.0,0.00021637,2]
[360308650,1746738643517,-500.0,0.0002166,2]
[360308652,1746738643527,-500.0,0.0002166,2]
[360308654,1746738643539,-500.0,0.00021667,2]
[360308656,1746738643559,-500.0,0.00021667,2]
[360308658,1746738643569,-500.0,0.00021667,2]
[360308660,1746738643579,-500.0,0.00021667,2]
[360308662,1746738643589,-500.0,0.00021667,2]
[360308664,1746738643599,-1801.9,0.00021672,2]
[360308666,1746738643608,-250.0,0.00021698,2]
[360308668,1746738643618,-200.0,0.00021698,2]
[360308670,1746738643627,-200.0,0.00021765,2]
[360308672,1746738643637,-200.0,0.00021918,2]
[360308674,1746738643647,-200.0,0.00021918,2]
[360308676,1746738643657,-200.0,0.00021918,2]
[360308678,1746738643667,-200.0,0.00021918,2]
[360308680,1746738643676,-200.0,0.00021918,2]
[360308682,1746738643685,-691.0,0.00021918,2]
[360308684,1746738643695,-250.0,0.00021989,2]
[360308686,1746738643705,-200.0,0.00021989,2]
[360308688,1746738643715,-227.01912571,0.00022319,2]
[360308690,1746738643724,-1000.0,0.00022526,2]
[360308692,1746738643733,-178.19879808,0.00022577,2]
[360308694,1746738643745,-4616.44775859,0.00022602,2]
[360308696,1746738643755,-1100.0,0.000229,8]
[360308698,1746738643765,-400.0,0.00023,2]
[360308700,1746738643774,-9527.55282782,0.00023089,2]
[360308702,1746738643784,-1317.26,0.00023252,2]
[360308704,1746738643794,-262.21619069,0.00023409,2]
[360308706,1746738643803,-3935.3145,0.00023479,10]
[360308708,1746738643813,-591.28514964,0.00023509,2]
[360308710,1746738643823,-150.0,0.0002351,2]
[360308712,1746738643832,-2351.0,0.00023679,2]
[360308714,1746738643842,-256.26268918,0.00023795,4]
[360308716,1746738643851,-169.2183201,0.00023795,4]
[360308718,1746738643861,-150.0,0.00023795,2]
[360308720,1746738643870,-150.0,0.00023795,2]
[360308722,1746738643880,-150.0,0.00023795,2]
[360308724,1746738643889,-150.0,0.00023795,2]
[360308726,1746738643899,-150.0,0.00023795,2]
[360308728,1746738643908,-150.0,0.00023795,2]
[360308730,1746738643917,-150.0,0.00023795,2]
[360308732,1746738643926,-150.0,0.00023795,2]
[360308734,1746738643937,-150.0,0.00023795,2]
[360308736,1746738643946,-150.0,0.00023795,2]
[360308737,1746738643955,-150.0,0.00023795,2]
[360308738,1746738643965,-256.26268918,0.00023821,4]
[360308739,1746738643975,-169.2183201,0.00023821,4]
[360308740,1746738643984,-150.0,0.00023828,4]
[360308741,1746738643993,-150.0,0.00023843,4]
[360308742,1746738644002,-256.26268918,0.00023848,4]
[360308743,1746738644012,-169.2183201,0.00023848,4]
[360308744,1746738644021,-150.0,0.00023861,4]
[360308745,1746738644031,-150.0,0.00023866,4]
[360308746,1746738644040,-150.0,0.00023872,4]
[360308747,1746738644049,-256.26268918,0.00023875,4]
[360308748,1746738644059,-169.2183201,0.00023875,4]
[360308749,1746738644068,-150.0,0.00023891,4]
[360308751,1746738644078,-150.0,0.00023895,4]
[360308753,1746738644087,-256.26268918,0.00023901,4]
[360308755,1746738644096,-169.2183201,0.00023901,4]
[360308757,1746738644106,-5157.46087246,0.00023906,2]
[360308759,1746738644115,-256.26268918,0.00023928,4]
[360308761,1746738644124,-169.2183201,0.00023928,4]
[360308763,1746738644134,-150.0,0.00023928,4]
[360308765,1746738644144,-150.0,0.00023937,4]
[360308767,1746738644153,-150.0,0.00023939,4]
[360308769,1746738644164,-150.0,0.0002395,4]
[360308771,1746738644174,-256.26268918,0.00023955,4]
[360308773,1746738644184,-169.2183201,0.00023955,4]
[360308775,1746738644194,-150.0,0.00023962,4]
[360308777,1746738644206,-256.26268918,0.00023981,4]
[360308779,1746738644216,-169.2183201,0.00023981,4]
[360308781,1746738644226,-150.0,0.00023983,4]
[360308783,1746738644236,-150.0,0.00023987,4]
[360308785,1746738644247,-150.0,0.00023995,4]
[360308787,1746738644257,-256.26268918,0.00024008,4]
[360308789,1746738644267,-169.2183201,0.00024008,4]
[360308791,1746738644277,-150.0,0.00024009,4]
[360308793,1746738644288,-150.0,0.00024028,4]
[360308795,1746738644298,-150.0,0.00024029,4]
[360308797,1746738644308,-256.26268918,0.00024035,4]
[360308799,1746738644319,-169.2183201,0.00024035,4]
[360308801,1746738644328,-150.0,0.00024035,4]
[360308803,1746738644339,-150.0,0.00024035,4]
[360308805,1746738644349,-4616.44775859,0.00024059,2]
[360308807,1746738644358,-256.26268918,0.00024062,4]
[360308809,1746738644369,-169.2183201,0.00024062,4]
[360308811,1746738644382,-150.0,0.00024062,4]
[360308813,1746738644392,-150.0,0.0002408,4]
[360308815,1746738644402,-150.0,0.00024083,4]
[360308817,1746738644412,-256.26268918,0.00024088,4]
[360308819,1746738644421,-169.2183201,0.00024088,4]
[360308821,1746738644434,-150.0,0.00024088,4]
[360308823,1746738644443,-150.0,0.00024088,4]